[Event "84th ESP-ch 2019"]
[Site "Marbella"]
[Date "2019.11.22"]
[Round "7.36"]
[White "Gutierrez Curras, Daniel"]
[Black "Rodriguez Redondo, Adhara"]
[Result "0-1"]
[ECO "C77"]
[WhiteElo "2025"]
[BlackElo "2199"]
[Annotator "NA"]
[PlyCount "112"]
[EventDate "2019.11.16"]
[EventType "swiss"]
[EventCountry "ESP"]
[SourceTitle "playchess.com"]
[Source "ChessBase"]
[SourceQuality "1"]
[TimeControl "5400+30"]

1. e4 {[%emt 0:00:00]} e5 {[%emt 0:00:00]} 2. Nf3 {[%emt 0:00:54]} Nc6 {[%emt 0:00:00]} 3. Bb5 {[%emt 0:00:50]} a6 {[%emt 0:00:08]} 4. Ba4 {[%emt 0:00:47]} Nf6 {[%emt 0:00:29]} 5. Bxc6 {[%emt 0:02:22]} dxc6 {[%emt 0:00:50]} 6. d3 {[%emt 0:00:54]} Bd6 {[%emt 0:03:33]} 7. Qe2 {[%emt 0:02:05]} Qe7 {[%emt 0:03:50]} 8. Nbd2 {[%emt 0:05:12]} O-O {[%emt 0:09:13]} 9. h3 {[%emt 0:03:05]} c5 {[%emt 0:05:37]} 10. Nf1 {[%emt 0:02:51]} b5 {[%emt 0:02:42]} 11. Ng3 {[%emt 0:02:12]} Ne8 {[%emt 0:05:03]} 12. O-O {[%emt 0:04:21]} f6 {[%emt 0:02:09]} 13. a4 {[%emt 0:00:47]} c6 {[%emt 0:04:16]} 14. Bd2 {[%emt 0:09:33]} Be6 {[%emt 0:02:36]} 15. axb5 {[%emt 0:06:03]} cxb5 {[%emt 0:00:08]} 16. Nf5 {[%emt 0:01:35]} Qd7 {[%emt 0:02:28]} 17. Ne3 {[%emt 0:01:11]} Qc6 {[%emt 0:03:59]} 18. c4 {[%emt 0:00:47]} b4 {[%emt 0:02:46]} 19. Nd5 {[%emt 0:03:20]} a5 {[%emt 0:02:25]} 20. Nh4 {[%emt 0:01:45]} Nc7 {[%emt 0:07:39]} 21. g4 {[%emt 0:01:56]} Bd7 {[%emt 0:06:24]} 22. Qf3 {[%emt 0:06:01]} Nxd5 {[%emt 0:03:00]} 23. exd5 {[%emt 0:00:16]} Qc7 {[%emt 0:02:20]} 24. Qe4 {[%emt 0:03:40]} a4 {[%emt 0:02:07]} 25. Kh1 {[%emt 0:01:25]} a3 {[%emt 0:03:41]} 26. b3 {[%emt 0:00:07]} f5 {[%emt 0:03:41]} 27. gxf5 {[%emt 0:00:37]} Be7 {[%emt 0:02:31]} 28. f4 {[%emt 0:02:20]} Bxh4 {[%emt 0:04:42]} 29. fxe5 {[%emt 0:00:12]} Bg3 {[%emt 0:01:12]} 30. e6 {[%emt 0:04:40]} Bc8 {[%emt 0:02:08]} 31. Bf4 {[%emt 0:01:10]} Bxf4 {[%emt 0:00:09]} 32. Rxf4 {[%emt 0:00:19]} Qe7 {[%emt 0:03:57]} 33. Qe5 {[%emt 0:06:44]} Bb7 {[%emt 0:02:56]} 34. Kh2 {[%emt 0:02:03]} Qf6 {[%emt 0:01:30]} 35. Qxf6 {[%emt 0:00:31]} Rxf6 {[%emt 0:00:09]} 36. Kg3 {[%emt 0:02:52]} Kf8 {[%emt 0:01:31]} 37. Kf3 {[%emt 0:01:11]} Ke7 {[%emt 0:01:45]} 38. Ke4 {[%emt 0:00:08]} Kd6 {[%emt 0:01:43]} 39. d4 Rc8 {[%emt 0:01:08]} 40. Rg4 {[%emt 0:03:31]} g6 {[%emt 0:00:28]} 41. fxg6 {[%emt 0:00:57]} Rxe6+ {[%emt 0:00:24]} 42. Kd3 {[%emt 0:00:17]} Rxg6 {[%emt 0:00:20]} 43. Rxg6+ {[%emt 0:00:35]} hxg6 {[%emt 0:00:01]} 44. Rg1 {[%emt 0:01:02]} Rg8 {[%emt 0:01:04]} 45. h4 {[%emt 0:00:13]} a2 {[%emt 0:01:52]} 46. dxc5+ {[%emt 0:00:48]} Kxc5 {[%emt 0:00:02]} 47. Ke4 {[%emt 0:01:00]} Rh8 {[%emt 0:00:36]} 48. Ke5 {[%emt 0:01:31]} Rxh4 {[%emt 0:00:32]} 49. Kf6 {[%emt 0:00:27]} Rh3 {[%emt 0:00:14]} 50. Ra1 {[%emt 0:00:18]} Rh2 {[%emt 0:01:26]} 51. Ke7 {[%emt 0:00:25]} g5 {[%emt 0:00:46]} 52. Kd8 {[%emt 0:01:38]} g4 {[%emt 0:01:01]} 53. Kc7 {[%emt 0:00:19]} Bxd5 {[%emt 0:00:23]} 54. cxd5 {[%emt 0:00:29]} Kxd5 {[%emt 0:00:01]} 55. Kb6 {[%emt 0:00:11]} Kd4 {[%emt 0:00:24]} 56. Kb5 {[%emt 0:00:28]} Kc3 {[%emt 0:00:14]} 0-1

[Event "84th ESP-ch 2019"]
[Site "Marbella"]
[Date "2019.11.22"]
[Round "7.37"]
[White "Mohamed Garcia, Ismael"]
[Black "Garcia Vicente, Nieves"]
[Result "0-1"]
[ECO "A45"]
[WhiteElo "1825"]
[BlackElo "2175"]
[Annotator "ChessBase"]
[PlyCount "162"]
[EventDate "2019.11.16"]
[EventType "swiss"]
[EventCountry "ESP"]
[SourceTitle "playchess.com"]
[Source "ChessBase"]
[SourceQuality "1"]
[TimeControl "5400+30"]

1. d4 {[%emt 0:00:00]} Nf6 {[%emt 0:00:12]} 2. Bf4 {[%emt 0:00:00]} d5 {[%emt 0:00:16]} 3. e3 {[%emt 0:00:00]} c5 {[%emt 0:01:02]} 4. c3 {[%emt 0:00:37]} Nc6 {[%emt 0:00:35]} 5. Nf3 {[%emt 0:00:12]} Bg4 {[%emt 0:01:14]} 6. Nbd2 {[%emt 0:07:52]} e6 {[%emt 0:02:18]} 7. h3 {[%emt 0:00:21]} Bh5 {[%emt 0:01:29]} 8. Qb3 {[%emt 0:05:43]} Qb6 {[%emt 0:02:59]} 9. Qxb6 {[%emt 0:00:08]} axb6 {[%emt 0:00:08]} 10. Bb5 {[%emt 0:01:47]} Nd7 {[%emt 0:04:50]} 11. Ne5 {[%emt 0:02:20]} Ndxe5 {[%emt 0:07:32]} 12. Bxe5 {[%emt 0:00:26]} O-O-O {[%emt 0:00:38]} 13. Bh2 {[%emt 0:02:40]} Bd6 {[%emt 0:01:21]} 14. Bxc6 {[%emt 0:01:36]} bxc6 {[%emt 0:01:37]} 15. Bxd6 {[%emt 0:00:10]} Rxd6 {[%emt 0:00:02]} 16. dxc5 {[%emt 0:01:09]} bxc5 17. Nb3 c4 {[%emt 0:00:28]} 18. Nc5 {[%emt 0:00:53]} e5 {[%emt 0:06:38]} 19. O-O {[%emt 0:16:50]} Be2 {[%emt 0:00:54]} 20. Rfe1 {[%emt 0:00:19]} Bd3 {[%emt 0:00:06]} 21. Red1 {[%emt 0:00:49]} Bf5 {[%emt 0:08:39]} 22. Rd2 Rhd8 {[%emt 0:00:57]} 23. Rad1 {[%emt 0:15:15]} Kc7 24. b4 {[%emt 0:06:19]} Bc8 {[%emt 0:06:38]} 25. a4 {[%emt 0:01:16]} Kb6 {[%emt 0:00:32]} 26. a5+ {[%emt 0:04:08]} Kb5 {[%emt 0:01:26]} 27. a6 {[%emt 0:00:12]} Bxa6 {[%emt 0:07:23]} 28. Nxa6 {[%emt 0:01:32]} Kxa6 {[%emt 0:00:19]} 29. Ra1+ {[%emt 0:00:18]} Kb6 {[%emt 0:01:39]} 30. Rda2 {[%emt 0:00:22]} R6d7 {[%emt 0:02:20]} 31. f4 {[%emt 0:14:15]} f6 {[%emt 0:04:14]} 32. Kf2 {[%emt 0:02:31]} Rb7 {[%emt 0:02:12]} 33. Ra6+ {[%emt 0:02:05]} Kc7 {[%emt 0:00:10]} 34. Rd1 {[%emt 0:00:39]} Rd7 {[%emt 0:03:38]} 35. g4 {[%emt 0:00:20]} Rb6 {[%emt 0:03:24]} 36. Ra7+ {[%emt 0:00:55]} Kd6 {[%emt 0:00:56]} 37. Rda1 {[%emt 0:03:29]} Rbb7 {[%emt 0:02:50]} 38. Ra8 {[%emt 0:00:52]} Kc7 {[%emt 0:03:23]} 39. Rh8 {[%emt 0:01:37]} h6 {[%emt 0:00:53]} 40. Re8 {[%emt 0:00:20]} exf4 {[%emt 0:05:14]} 41. exf4 {[%emt 0:00:02]} d4 {[%emt 0:00:19]} 42. Re4 {[%emt 0:01:14]} Kb6 {[%emt 0:01:45]} 43. cxd4 {[%emt 0:02:07]} Kb5 {[%emt 0:00:42]} 44. Ke3 {[%emt 0:01:02]} Kxb4 {[%emt 0:02:11]} 45. Kd2 {[%emt 0:00:28]} Rb5 {[%emt 0:02:40]} 46. Rb1+ {[%emt 0:00:22]} Ka5 {[%emt 0:01:38]} 47. Ra1+ {[%emt 0:00:47]} Kb6 {[%emt 0:00:24]} 48. Kc3 {[%emt 0:00:40]} Rb3+ {[%emt 0:02:38]} 49. Kxc4 {[%emt 0:00:03]} Rxh3 {[%emt 0:00:16]} 50. Rb1+ {[%emt 0:00:19]} Kc7 {[%emt 0:00:23]} 51. Rg1 {[%emt 0:02:07]} Rh2 {[%emt 0:03:47]} 52. Re3 {[%emt 0:01:50]} Rf2 {[%emt 0:00:44]} 53. f5 {[%emt 0:00:12]} Rf4 {[%emt 0:00:18]} 54. Rd3 {[%emt 0:00:27]} Rd5 {[%emt 0:01:46]} 55. Rg2 {[%emt 0:00:48]} Re4 {[%emt 0:01:06]} 56. Kc3 {[%emt 0:01:29]} Ra5 {[%emt 0:00:58]} 57. Kb4 {[%emt 0:00:35]} Rd5 {[%emt 0:00:55]} 58. Kc4 {[%emt 0:00:10]} Kd6 {[%emt 0:00:41]} 59. Kc3 {[%emt 0:00:10]} Ra5 {[%emt 0:00:33]} 60. Kb4 {[%emt 0:02:19]} Ra7 {[%emt 0:00:30]} 61. Kc3 {[%emt 0:02:16]} Ra3+ {[%emt 0:01:12]} 62. Kc4 {[%emt 0:00:04]} Rxd3 {[%emt 0:00:12]} 63. Kxd3 {[%emt 0:00:06]} Kd5 {[%emt 0:00:07]} 64. Rg1 {[%emt 0:00:51]} Rxd4+ {[%emt 0:00:35]} 65. Ke3 {[%emt 0:00:01]} c5 {[%emt 0:00:41]} 66. Rg2 {[%emt 0:00:58]} c4 {[%emt 0:01:20]} 67. g5 {[%emt 0:00:58]} hxg5 {[%emt 0:00:22]} 68. Ra2 {[%emt 0:00:08]} Re4+ {[%emt 0:00:47]} 69. Kd2 {[%emt 0:00:41]} Rf4 {[%emt 0:00:53]} 70. Ra7 {[%emt 0:00:16]} Rxf5 {[%emt 0:00:19]} 71. Rd7+ {[%emt 0:00:11]} Ke5 {[%emt 0:00:41]} 72. Rxg7 {[%emt 0:00:05]} Rf3 {[%emt 0:00:26]} 73. Rc7 {[%emt 0:00:16]} Rf4 {[%emt 0:00:31]} 74. Ke3 {[%emt 0:00:12]} Kf5 {[%emt 0:00:11]} 75. Rc8 {[%emt 0:01:15]} Kg4 {[%emt 0:00:09]} 76. Rc7 {[%emt 0:00:15]} f5 {[%emt 0:00:14]} 77. Rc8 {[%emt 0:00:26]} Kg3 {[%emt 0:00:28]} 78. Ke2 {[%emt 0:00:36]} g4 {[%emt 0:00:33]} 79. Rc5 {[%emt 0:00:08]} Kg2 {[%emt 0:00:25]} 80. Ke3 {[%emt 0:00:33]} Re4+ {[%emt 0:00:14]} 81. Kd2 {[%emt 0:00:13]} f4 {[%emt 0:00:11]} 0-1

[Event "84th ESP-ch 2019"]
[Site "Marbella"]
[Date "2019.11.22"]
[Round "7.38"]
[White "Ramirez Diaz, Jose Ramon"]
[Black "Boutahar Belgasi, Tarik"]
[Result "1-0"]
[ECO "B75"]
[WhiteElo "2171"]
[BlackElo "2027"]
[Annotator "NA"]
[PlyCount "87"]
[EventDate "2019.11.16"]
[EventType "swiss"]
[EventCountry "ESP"]
[SourceTitle "playchess.com"]
[Source "ChessBase"]
[SourceQuality "1"]
[TimeControl "5400+30"]

1. e4 {[%emt 0:00:00]} c5 {[%emt 0:00:00]} 2. Nf3 {[%emt 0:00:12]} d6 {[%emt 0:00:00]} 3. d4 {[%emt 0:00:16]} cxd4 {[%emt 0:00:00]} 4. Nxd4 {[%emt 0:00:11]} Nf6 {[%emt 0:00:00]} 5. Nc3 {[%emt 0:00:10]} g6 {[%emt 0:00:00]} 6. Be3 {[%emt 0:00:15]} Bg7 {[%emt 0:00:00]} 7. f3 {[%emt 0:00:24]} Nc6 {[%emt 0:00:11]} 8. Qd2 {[%emt 0:00:25]} O-O {[%emt 0:00:07]} 9. g4 {[%emt 0:00:43]} Bd7 {[%emt 0:04:19]} 10. h4 {[%emt 0:05:49]} h5 {[%emt 0:00:20]} 11. gxh5 {[%emt 0:00:26]} Nxh5 {[%emt 0:00:12]} 12. O-O-O {[%emt 0:01:11]} Rc8 {[%emt 0:10:04]} 13. Rg1 {[%emt 0:02:52]} Ne5 {[%emt 0:06:42]} 14. Kb1 {[%emt 0:04:52]} Rxc3 {[%emt 0:18:51]} 15. bxc3 {[%emt 0:13:59]} Qa5 {[%emt 0:00:16]} 16. Nb3 {[%emt 0:05:06]} Qc7 {[%emt 0:08:22]} 17. Be2 {[%emt 0:01:27]} Rc8 {[%emt 0:00:08]} 18. Bd4 {[%emt 0:01:37]} Nc4 {[%emt 0:01:51]} 19. Bxc4 {[%emt 0:10:06]} Qxc4 {[%emt 0:00:03]} 20. Kb2 {[%emt 0:01:40]} a5 {[%emt 0:00:39]} 21. Bxg7 {[%emt 0:04:21]} Nxg7 {[%emt 0:00:11]} 22. Qd4 {[%emt 0:01:39]} Qc7 {[%emt 0:00:37]} 23. h5 {[%emt 0:16:47]} Nxh5 {[%emt 0:03:19]} 24. Rh1 {[%emt 0:00:34]} e5 {[%emt 0:07:23]} 25. Qe3 {[%emt 0:04:07]} Nf4 {[%emt 0:01:15]} 26. Rh2 {[%emt 0:03:10]} Be6 {[%emt 0:01:57]} 27. Rhd2 {[%emt 0:00:37]} a4 {[%emt 0:00:47]} 28. Nc1 {[%emt 0:01:12]} a3+ {[%emt 0:04:54]} 29. Kb1 {[%emt 0:00:19]} Qa5 {[%emt 0:17:33]} 30. Rxd6 {[%emt 0:03:22]} Rxc3 {[%emt 0:00:23]} 31. Qd2 {[%emt 0:03:10]} Qb5+ {[%emt 0:02:22]} 32. Nb3 {[%emt 0:00:08]} Rxf3 {[%emt 0:00:02]} 33. Rd8+ {[%emt 0:01:39]} Kg7 {[%emt 0:00:04]} 34. Qd6 {[%emt 0:04:51]} Ne2 {[%emt 0:03:17]} 35. Qf8+ {[%emt 0:01:02]} Kf6 {[%emt 0:00:01]} 36. Qh8+ {[%emt 0:00:17]} Kg5 {[%emt 0:00:02]} 37. Ka1 {[%emt 0:04:25]} Rh3 {[%emt 0:03:12]} 38. Qf8 {[%emt 0:01:10]} Bxb3 {[%emt 0:04:12]} 39. axb3 {[%emt 0:01:12]} Nd4 {[%emt 0:02:39]} 40. Rg1+ {[%emt 0:00:25]} Kf6 {[%emt 0:01:51]} 41. Rd6+ {[%emt 0:00:09]} Ne6 {[%emt 0:00:21]} 42. Qd8+ {[%emt 0:00:21]} Kg7 {[%emt 0:00:16]} 43. Rxe6 {[%emt 0:01:15]} fxe6 {[%emt 0:00:02]} 44. Qe7+ {[%emt 0:00:13]} 1-0

[Event "84th ESP-ch 2019"]
[Site "Marbella"]
[Date "2019.11.22"]
[Round "7.39"]
[White "Jaime Montalvan, Luis Felipe"]
[Black "Serrano Garcia, Luis"]
[Result "1-0"]
[ECO "A05"]
[WhiteElo "2167"]
[BlackElo "1866"]
[Annotator "ChessBase"]
[PlyCount "49"]
[EventDate "2019.11.16"]
[EventType "swiss"]
[EventCountry "ESP"]
[SourceTitle "playchess.com"]
[Source "ChessBase"]
[SourceQuality "1"]
[TimeControl "5400+30"]

1. Nf3 {[%emt 0:00:00]} Nf6 {[%emt 0:02:36]} 2. c4 {[%emt 0:00:08]} g6 {[%emt 0:00:11]} 3. b4 {[%emt 0:00:18]} Bg7 {[%emt 0:00:11]} 4. Bb2 {[%emt 0:00:01]} O-O {[%emt 0:00:21]} 5. d3 {[%emt 0:00:18]} d6 {[%emt 0:00:14]} 6. e3 {[%emt 0:00:26]} e5 {[%emt 0:02:01]} 7. Nbd2 {[%emt 0:01:08]} Re8 {[%emt 0:02:01]} 8. Qc2 {[%emt 0:02:18]} Nc6 {[%emt 0:01:50]} 9. a3 {[%emt 0:00:12]} a5 {[%emt 0:04:29]} 10. b5 {[%emt 0:01:00]} Ne7 {[%emt 0:00:31]} 11. a4 {[%emt 0:00:49]} h6 {[%emt 0:07:54]} 12. Be2 {[%emt 0:00:35]} Kh7 {[%emt 0:00:36]} 13. O-O {[%emt 0:02:33]} Nd7 {[%emt 0:08:16]} 14. Ne4 {[%emt 0:03:02]} Ng8 {[%emt 0:01:33]} 15. c5 {[%emt 0:10:53]} f5 {[%emt 0:05:40]} 16. c6 {[%emt 0:00:11]} bxc6 {[%emt 0:01:47]} 17. Qxc6 {[%emt 0:14:43]} fxe4 {[%emt 0:15:08]} 18. Qxa8 {[%emt 0:00:39]} exf3 {[%emt 0:00:06]} 19. Bxf3 {[%emt 0:00:34]} e4 {[%emt 0:02:26]} 20. Bxg7 {[%emt 0:00:08]} exf3 {[%emt 0:00:06]} 21. Bd4 {[%emt 0:13:38]} fxg2 {[%emt 0:00:34]} 22. Rfc1 {[%emt 0:00:05]} Ne5 {[%emt 0:11:46]} 23. Bxe5 {[%emt 0:04:59]} Rxe5 {[%emt 0:01:38]} 24. b6 {[%emt 0:01:09]} Qh4 {[%emt 0:15:24]} 25. Rxc7+ {[%emt 0:01:18]} 1-0

[Event "84th ESP-ch 2019"]
[Site "Marbella"]
[Date "2019.11.22"]
[Round "7.40"]
[White "Perea Fruet, Lorenzo"]
[Black "Vega Gutierrez, Belinda"]
[Result "1/2-1/2"]
[ECO "C47"]
[WhiteElo "1582"]
[BlackElo "2161"]
[Annotator "ChessBase"]
[PlyCount "143"]
[EventDate "2019.11.16"]
[EventType "swiss"]
[EventCountry "ESP"]
[SourceTitle "playchess.com"]
[Source "ChessBase"]
[SourceQuality "1"]
[TimeControl "5400+30"]

1. e4 {[%emt 0:00:00]} e5 {[%emt 0:00:00]} 2. Nf3 {[%emt 0:00:00]} Nc6 {[%emt 0:00:00]} 3. Nc3 {[%emt 0:00:00]} Nf6 {[%emt 0:03:38]} 4. d4 {[%emt 0:00:00]} exd4 {[%emt 0:05:32]} 5. Nxd4 {[%emt 0:00:04]} Bb4 {[%emt 0:00:08]} 6. Nxc6 {[%emt 0:00:05]} bxc6 {[%emt 0:00:06]} 7. Bd3 {[%emt 0:00:04]} d5 {[%emt 0:00:50]} 8. exd5 {[%emt 0:00:06]} cxd5 {[%emt 0:00:09]} 9. O-O {[%emt 0:00:06]} O-O {[%emt 0:00:18]} 10. Bg5 {[%emt 0:00:17]} c6 {[%emt 0:00:15]} 11. Qf3 {[%emt 0:00:21]} Bd6 {[%emt 0:00:59]} 12. Ne2 {[%emt 0:03:02]} Be5 {[%emt 0:09:39]} 13. Rab1 {[%emt 0:01:58]} Qd6 {[%emt 0:13:15]} 14. h3 {[%emt 0:01:04]} Nd7 {[%emt 0:09:48]} 15. c3 {[%emt 0:11:15]} Nc5 {[%emt 0:05:08]} 16. Bc2 {[%emt 0:01:14]} Ba6 {[%emt 0:04:09]} 17. Rfd1 {[%emt 0:08:04]} Ne6 {[%emt 0:02:26]} 18. Bh4 {[%emt 0:03:05]} Rfe8 {[%emt 0:04:38]} 19. Ng3 {[%emt 0:02:26]} g6 {[%emt 0:00:43]} 20. Qg4 {[%emt 0:08:11]} Bg7 {[%emt 0:04:41]} 21. Ne4 {[%emt 0:01:11]} Qf4 {[%emt 0:01:45]} 22. Qxf4 {[%emt 0:03:42]} Nxf4 {[%emt 0:00:06]} 23. Nc5 {[%emt 0:00:10]} Bc4 {[%emt 0:03:37]} 24. Bb3 {[%emt 0:11:41]} Bxb3 {[%emt 0:03:17]} 25. Nxb3 {[%emt 0:00:18]} a5 {[%emt 0:05:07]} 26. Nd4 {[%emt 0:02:34]} Ne2+ {[%emt 0:00:37]} 27. Nxe2 {[%emt 0:00:40]} Rxe2 {[%emt 0:00:04]} 28. Kf1 {[%emt 0:00:09]} Re4 {[%emt 0:03:05]} 29. Bg5 {[%emt 0:01:02]} a4 {[%emt 0:00:44]} 30. Rd3 {[%emt 0:03:42]} f5 {[%emt 0:03:49]} 31. f3 {[%emt 0:00:32]} Re6 {[%emt 0:01:25]} 32. Re1 {[%emt 0:00:10]} Rxe1+ {[%emt 0:01:45]} 33. Kxe1 {[%emt 0:00:04]} Rb8 {[%emt 0:00:07]} 34. Bc1 {[%emt 0:00:05]} Kf7 {[%emt 0:00:54]} 35. Kd1 {[%emt 0:00:23]} Ke6 {[%emt 0:00:55]} 36. Kc2 {[%emt 0:00:28]} Be5 {[%emt 0:03:37]} 37. Be3 {[%emt 0:02:34]} f4 {[%emt 0:02:16]} 38. Bd4 {[%emt 0:00:38]} Bd6 {[%emt 0:00:08]} 39. Bg1 {[%emt 0:00:35]} c5 {[%emt 0:01:00]} 40. Bh2 {[%emt 0:00:34]} g5 {[%emt 0:01:28]} 41. Rd1 {[%emt 0:01:42]} c4 {[%emt 0:01:29]} 42. Bg1 {[%emt 0:01:07]} h5 {[%emt 0:03:12]} 43. Bd4 {[%emt 0:01:46]} Rg8 {[%emt 0:00:18]} 44. Rh1 {[%emt 0:00:41]} Kf5 {[%emt 0:00:44]} 45. Bf2 {[%emt 0:04:58]} g4 {[%emt 0:01:56]} 46. hxg4+ {[%emt 0:00:06]} hxg4 {[%emt 0:00:06]} 47. Rh5+ {[%emt 0:00:28]} Ke6 {[%emt 0:00:44]} 48. Rh2 {[%emt 0:02:43]} Kd7 {[%emt 0:01:41]} 49. Bd4 {[%emt 0:02:36]} Kc6 {[%emt 0:00:49]} 50. a3 {[%emt 0:02:26]} gxf3 {[%emt 0:00:40]} 51. gxf3 {[%emt 0:00:07]} Rg3 {[%emt 0:00:07]} 52. Rf2 {[%emt 0:00:43]} Bc5 {[%emt 0:00:31]} 53. Kd2 {[%emt 0:00:31]} Kb5 {[%emt 0:01:02]} 54. Kc2 {[%emt 0:00:09]} Rh3 {[%emt 0:00:22]} 55. Kd2 {[%emt 0:00:27]} Rg3 {[%emt 0:00:43]} 56. Kc2 {[%emt 0:00:04]} Rh3 {[%emt 0:00:03]} 57. Kd2 {[%emt 0:00:07]} Rh1 {[%emt 0:00:46]} 58. Kc2 {[%emt 0:04:09]} Bxd4 {[%emt 0:00:44]} 59. cxd4 {[%emt 0:00:06]} Re1 {[%emt 0:00:10]} 60. Rh2 {[%emt 0:01:06]} c3 {[%emt 0:00:57]} 61. b3 {[%emt 0:02:35]} axb3+ {[%emt 0:00:24]} 62. Kxb3 {[%emt 0:00:14]} Re3 {[%emt 0:00:05]} 63. a4+ {[%emt 0:01:41]} Ka5 {[%emt 0:00:55]} 64. Rh5 {[%emt 0:01:13]} c2+ {[%emt 0:00:26]} 65. Kxc2 {[%emt 0:00:14]} Kxa4 {[%emt 0:00:09]} 66. Rxd5 {[%emt 0:00:45]} Kb4 {[%emt 0:00:02]} 67. Rf5 {[%emt 0:00:26]} Rxf3 {[%emt 0:00:19]} 68. Kd2 {[%emt 0:00:04]} Kc4 {[%emt 0:00:13]} 69. Ke2 {[%emt 0:00:09]} Re3+ {[%emt 0:00:18]} 70. Kf2 {[%emt 0:00:05]} Re4 {[%emt 0:00:23]} 71. Kf3 {[%emt 0:00:04]} Kxd4 {[%emt 0:00:13]} 72. Rxf4 {[%emt 0:00:12]} 1/2-1/2

[Event "84th ESP-ch 2019"]
[Site "Marbella"]
[Date "2019.11.22"]
[Round "7.41"]
[White "Collado Barbas, Laura"]
[Black "Sanjuan Garcia, Miguel"]
[Result "0-1"]
[ECO "A58"]
[WhiteElo "2142"]
[BlackElo "2021"]
[Annotator "ChessBase"]
[PlyCount "124"]
[EventDate "2019.11.16"]
[EventType "swiss"]
[EventCountry "ESP"]
[SourceTitle "playchess.com"]
[Source "ChessBase"]
[SourceQuality "1"]
[TimeControl "5400+30"]

1. d4 {[%emt 0:00:00]} Nf6 {[%emt 0:00:00]} 2. c4 {[%emt 0:00:00]} c5 {[%emt 0:00:00]} 3. d5 {[%emt 0:00:00]} b5 {[%emt 0:00:00]} 4. cxb5 {[%emt 0:00:00]} a6 {[%emt 0:00:03]} 5. bxa6 {[%emt 0:00:00]} e6 {[%emt 0:00:22]} 6. Nc3 {[%emt 0:01:22]} exd5 {[%emt 0:00:18]} 7. Nxd5 {[%emt 0:01:46]} Be7 {[%emt 0:00:12]} 8. Nf3 {[%emt 0:01:27]} O-O {[%emt 0:02:25]} 9. Nxe7+ {[%emt 0:02:00]} Qxe7 {[%emt 0:00:03]} 10. Bf4 {[%emt 0:00:28]} d5 {[%emt 0:09:32]} 11. g3 {[%emt 0:05:50]} Re8 {[%emt 0:08:45]} 12. Rc1 {[%emt 0:06:42]} Bxa6 {[%emt 0:08:37]} 13. a3 {[%emt 0:08:41]} d4 {[%emt 0:10:58]} 14. e3 {[%emt 0:07:10]} dxe3 {[%emt 0:00:42]} 15. Bxe3 {[%emt 0:00:46]} Ne4 {[%emt 0:05:12]} 16. Qb3 {[%emt 0:01:59]} Bb7 {[%emt 0:10:06]} 17. Bc4 {[%emt 0:16:27]} Nc6 {[%emt 0:03:32]} 18. O-O {[%emt 0:06:28]} Na5 {[%emt 0:00:30]} 19. Qa2 {[%emt 0:03:08]} Nxc4 {[%emt 0:08:17]} 20. Rxc4 {[%emt 0:05:41]} Qe6 {[%emt 0:03:57]} 21. b3 {[%emt 0:07:02]} Bd5 {[%emt 0:01:48]} 22. Rcc1 {[%emt 0:02:50]} Bxb3 {[%emt 0:03:28]} 23. Qb2 {[%emt 0:01:08]} Rab8 {[%emt 0:04:15]} 24. Qe2 {[%emt 0:04:43]} Bd5 {[%emt 0:03:10]} 25. Rfe1 {[%emt 0:02:39]} h6 {[%emt 0:03:40]} 26. Qd1 {[%emt 0:03:05]} Qc6 {[%emt 0:04:55]} 27. Nd4 {[%emt 0:01:30]} Qa8 {[%emt 0:01:15]} 28. Nf5 {[%emt 0:00:37]} Be6 {[%emt 0:01:06]} 29. Qg4 {[%emt 0:01:01]} Bxf5 {[%emt 0:01:32]} 30. Qxf5 {[%emt 0:00:02]} Qxa3 {[%emt 0:01:35]} 31. Bf4 {[%emt 0:01:43]} Qf3 {[%emt 0:01:14]} 32. Rxe4 {[%emt 0:06:43]} Rxe4 {[%emt 0:00:17]} 33. Qxc5 {[%emt 0:00:35]} Rxf4 {[%emt 0:01:50]} 34. gxf4 {[%emt 0:00:06]} Qg4+ {[%emt 0:00:17]} 35. Kf1 {[%emt 0:01:17]} Qh3+ {[%emt 0:00:01]} 36. Kg1 {[%emt 0:00:31]} Qg4+ {[%emt 0:00:25]} 37. Kf1 {[%emt 0:00:04]} Qxf4 {[%emt 0:00:23]} 38. Qc7 {[%emt 0:00:49]} Qb4 {[%emt 0:00:10]} 39. Rd1 {[%emt 0:01:03]} Qb5+ {[%emt 0:00:09]} 40. Kg1 {[%emt 0:00:39]} Qg5+ {[%emt 0:00:03]} 41. Kf1 {[%emt 0:00:06]} Qb5+ {[%emt 0:00:26]} 42. Kg1 {[%emt 0:00:01]} Qe8 {[%emt 0:01:02]} 43. Kf1 {[%emt 0:00:51]} Kh7 {[%emt 0:01:13]} 44. Qc2+ {[%emt 0:00:43]} g6 {[%emt 0:00:14]} 45. Qc7 {[%emt 0:00:34]} Rb2 {[%emt 0:00:35]} 46. Qc4 {[%emt 0:00:42]} Kg8 {[%emt 0:01:34]} 47. Re1 {[%emt 0:00:23]} Qd7 {[%emt 0:00:42]} 48. Qc3 {[%emt 0:00:36]} Qb5+ {[%emt 0:01:00]} 49. Kg1 {[%emt 0:00:32]} Qg5+ {[%emt 0:00:11]} 50. Kf1 {[%emt 0:00:44]} Rb8 {[%emt 0:00:04]} 51. Qc6 {[%emt 0:00:35]} Kh7 {[%emt 0:01:03]} 52. Qc7 {[%emt 0:00:26]} Qb5+ {[%emt 0:00:09]} 53. Kg1 {[%emt 0:00:12]} Rb7 {[%emt 0:00:05]} 54. Qd8 {[%emt 0:00:50]} Rd7 {[%emt 0:00:35]} 55. Qf6 {[%emt 0:00:26]} Qb7 {[%emt 0:00:24]} 56. Qc3 {[%emt 0:00:59]} Qd5 {[%emt 0:00:53]} 57. Qe5 {[%emt 0:00:56]} Qf3 {[%emt 0:00:46]} 58. Qe3 {[%emt 0:00:24]} Qb7 {[%emt 0:00:28]} 59. Qe4 {[%emt 0:00:25]} Rd5 {[%emt 0:00:31]} 60. h4 {[%emt 0:00:53]} Qd7 {[%emt 0:00:03]} 61. Qf3 {[%emt 0:00:31]} Rf5 {[%emt 0:00:45]} 62. Qg4 {[%emt 0:00:33]} Rg5 {[%emt 0:00:27]} 0-1